[Event "NJSK 2023 Jeugd C"]
[Site "Almelo, Netherlands"]
[Date "2023.05.02"]
[Round "3.15"]
[White "Klein Tuente, Sam"]
[Black "Zootjes, Aäron"]
[Result "1-0"]
[TimeControl "90min/40moves + 30min + 30sec/move"]
[WhiteElo "1478"]
[BlackElo "1172"]

1. e4 {[%clk 01:30:56]} {[%emt 00:00:03]} c5 {[%clk 01:30:53]} {[%emt
00:00:08]} 2. Nf3 {[%clk 01:31:15]} {[%emt 00:00:11]} Nc6 {[%clk 01:31:14]}
{[%emt 00:00:10]} 3. d4 {[%clk 01:31:33]} {[%emt 00:00:11]} cxd4 {[%clk
01:31:36]} {[%emt 00:00:08]} 4. Nxd4 {[%clk 01:31:59]} {[%emt 00:00:04]} e5
{[%clk 01:31:56]} {[%emt 00:00:09]} 5. Nb5 {[%clk 01:32:09]} {[%emt 00:00:21]}
d6 {[%clk 01:31:11]} {[%emt 00:01:15]} 6. c4 {[%clk 01:28:34]} {[%emt
00:04:06]} Nf6 {[%clk 01:29:19]} {[%emt 00:02:21]} 7. Bg5 {[%clk 01:28:24]}
{[%emt 00:00:40]} Be7 {[%clk 01:29:18]} {[%emt 00:00:31]} 8. N1c3 {[%clk
01:26:54]} {[%emt 00:02:00]} a6 {[%clk 01:27:37]} {[%emt 00:02:12]} 9. Bxf6
{[%clk 01:26:33]} {[%emt 00:00:51]} Bxf6 {[%clk 01:27:54]} {[%emt 00:00:12]} 10.
Nxd6+ {[%clk 01:26:51]} {[%emt 00:00:12]} Ke7 {[%clk 01:27:09]} {[%emt
00:01:15]} 11. Nd5+ {[%clk 01:25:42]} {[%emt 00:01:40]} Ke6 {[%clk 01:26:20]}
{[%emt 00:01:19]} 12. Nxc8 {[%clk 01:24:34]} {[%emt 00:01:38]} Rxc8 {[%clk
01:26:25]} {[%emt 00:00:24]} 13. g3 {[%clk 01:24:59]} {[%emt 00:00:06]} Ra8
{[%clk 01:19:23]} {[%emt 00:07:31]} 14. c5 {[%clk 01:24:17]} {[%emt 00:01:12]}
Kd7 {[%clk 01:19:03]} {[%emt 00:00:50]} 15. Nxf6+ {[%clk 01:24:21]} {[%emt
00:00:26]} Kc8 {[%clk 01:18:50]} {[%emt 00:00:43]} 16. Bh3+ {[%clk 01:24:34]}
{[%emt 00:00:18]} Kb8 {[%clk 01:19:00]} {[%emt 00:00:19]} 17. Nd7+ {[%emt
00:02:45]} 1-0

[Event "NJSK 2023 Jeugd C"]
[Site "Almelo, Netherlands"]
[Date "2023.05.02"]
[Round "4.1"]
[White "Arnold, Rhys"]
[Black "Wink, Luka"]
[Result "1/2-1/2"]
[TimeControl "90min/40moves + 30min + 30sec/move"]
[WhiteElo "2003"]
[BlackElo "1849"]

1. e4 {[%clk 01:30:59]} c5 {[%clk 01:30:55]} {[%emt 00:00:05]} 2. Nf3 {[%clk
01:31:27]} {[%emt 00:00:02]} d6 {[%clk 01:31:19]} {[%emt 00:00:07]} 3. Bb5+
{[%clk 01:31:55]} {[%emt 00:00:02]} Bd7 {[%clk 01:31:44]} {[%emt 00:00:05]} 4.
c4 {[%clk 01:32:17]} {[%emt 00:00:08]} Nf6 {[%clk 01:31:50]} {[%emt 00:00:24]}
5. Nc3 {[%clk 01:32:43]} {[%emt 00:00:04]} Nc6 {[%clk 01:32:13]} {[%emt
00:00:07]} 6. O-O {[%clk 01:31:03]} {[%emt 00:02:09]} g6 {[%clk 01:30:53]}
{[%emt 00:01:51]} 7. d3 {[%clk 01:25:33]} {[%emt 00:06:00]} Bg7 {[%clk
01:30:36]} {[%emt 00:00:47]} 8. h3 {[%clk 01:25:29]} {[%emt 00:00:34]} Nd4
{[%clk 01:26:58]} {[%emt 00:04:08]} 9. Nxd4 {[%clk 01:22:44]} {[%emt 00:03:15]}
cxd4 {[%clk 01:27:15]} {[%emt 00:00:13]} 10. Bxd7+ {[%clk 01:23:04]} {[%emt
00:00:10]} Nxd7 {[%clk 01:27:15]} {[%emt 00:00:30]} 11. Ne2 {[%clk 01:23:25]}
{[%emt 00:00:10]} a6 {[%clk 01:24:58]} {[%emt 00:02:46]} 12. a4 {[%clk
01:20:07]} {[%emt 00:03:48]} Rb8 {[%clk 01:20:04]} {[%emt 00:05:24]} 13. b4
{[%clk 01:18:18]} {[%emt 00:02:18]} O-O {[%clk 01:11:12]} {[%emt 00:09:23]} 14.
Bd2 {[%clk 01:17:31]} {[%emt 00:01:17]} e5 {[%clk 01:02:41]} {[%emt 00:09:00]}
15. f3 {[%clk 00:59:30]} {[%emt 00:18:30]} b6 {[%clk 00:59:47]} {[%emt
00:03:26]} 16. a5 {[%clk 00:57:59]} {[%emt 00:02:01]} b5 {[%clk 00:58:23]}
{[%emt 00:01:54]} 17. Rc1 {[%clk 00:55:37]} {[%emt 00:02:51]} h5 {[%clk
00:50:32]} {[%emt 00:08:20]} 18. cxb5 {[%clk 00:45:02]} {[%emt 00:11:06]} Rxb5
{[%clk 00:50:31]} {[%emt 00:00:31]} 19. Qa4 {[%clk 00:44:50]} {[%emt 00:00:42]}
Nb8 {[%clk 00:48:30]} {[%emt 00:02:31]} 20. f4 {[%clk 00:38:13]} {[%emt
00:07:08]} Bh6 {[%clk 00:47:08]} {[%emt 00:01:50]} 21. Rc2 {[%clk 00:37:05]}
{[%emt 00:01:39]} f5 {[%clk 00:35:55]} {[%emt 00:11:43]} 22. Qa2+ {[%clk
00:29:14]} {[%emt 00:08:22]} Kg7 {[%clk 00:34:21]} {[%emt 00:02:03]} 23. exf5
{[%clk 00:27:39]} {[%emt 00:02:05]} Rxf5 {[%clk 00:33:05]} {[%emt 00:01:46]} 24.
Ng3 {[%clk 00:25:19]} {[%emt 00:02:51]} Rf8 {[%clk 00:30:36]} {[%emt 00:02:58]}
25. fxe5 {[%clk 00:19:53]} {[%emt 00:05:55]} Bxd2 {[%clk 00:30:37]} {[%emt
00:00:29]} 26. Rxd2 {[%clk 00:20:18]} {[%emt 00:00:05]} Rxf1+ {[%clk 00:30:15]}
{[%emt 00:00:53]} 27. Nxf1 {[%clk 00:20:44]} {[%emt 00:00:04]} dxe5 {[%clk
00:29:57]} {[%emt 00:00:49]} 28. Qe6 {[%clk 00:20:13]} {[%emt 00:00:57]} Qf6
{[%clk 00:29:50]} {[%emt 00:00:40]} 29. Qc4 {[%clk 00:16:26]} {[%emt 00:04:18]}
Qc6 {[%clk 00:25:00]} {[%emt 00:05:19]} 1/2-1/2

[Event "NJSK 2023 Jeugd C"]
[Site "Almelo, Netherlands"]
[Date "2023.05.02"]
[Round "4.2"]
[White "Kazarjan, Gachatur"]
[Black "Madularea, David"]
[Result "0-1"]
[TimeControl "90min/40moves + 30min + 30sec/move"]
[WhiteElo "1872"]
[BlackElo "1895"]

1. e4 {[%emt 00:00:18]} c5 {[%clk 01:30:45]} 2. Nf3 {[%clk 01:31:25]} {[%emt
00:00:03]} d6 {[%clk 01:31:10]} {[%emt 00:00:05]} 3. d4 {[%clk 01:31:52]}
{[%emt 00:00:03]} cxd4 {[%clk 01:31:34]} {[%emt 00:00:05]} 4. Nxd4 {[%clk
01:32:19]} {[%emt 00:00:03]} Nf6 {[%clk 01:31:54]} {[%emt 00:00:10]} 5. Nc3
{[%clk 01:32:45]} {[%emt 00:00:05]} a6 {[%clk 01:32:19]} {[%emt 00:00:05]} 6.
Bc4 {[%clk 01:33:11]} {[%emt 00:00:04]} e6 {[%clk 01:32:37]} {[%emt 00:00:11]}
7. O-O {[%clk 01:33:37]} {[%emt 00:00:05]} Be7 {[%clk 01:31:57]} {[%emt
00:01:09]} 8. Re1 {[%clk 01:33:58]} {[%emt 00:00:09]} O-O {[%clk 01:32:11]}
{[%emt 00:00:16]} 9. a4 {[%clk 01:34:17]} {[%emt 00:00:12]} Nbd7 {[%clk
01:31:57]} {[%emt 00:00:43]} 10. f3 {[%clk 01:30:49]} {[%emt 00:03:59]} Qc7
{[%clk 01:30:03]} {[%emt 00:02:24]} 11. Qe2 {[%clk 01:25:23]} {[%emt 00:05:56]}
b6 {[%clk 01:25:19]} {[%emt 00:05:13]} 12. Be3 {[%clk 01:22:49]} {[%emt
00:03:03]} Bb7 {[%clk 01:24:07]} {[%emt 00:01:41]} 13. Rad1 {[%clk 01:20:08]}
{[%emt 00:03:12]} Ne5 {[%clk 01:20:52]} {[%emt 00:03:46]} 14. Ba2 {[%clk
01:18:27]} {[%emt 00:02:11]} Rac8 {[%clk 01:18:02]} {[%emt 00:03:20]} 15. Qf2
{[%clk 01:14:10]} {[%emt 00:04:48]} Nc4 {[%clk 01:14:57]} {[%emt 00:03:34]} 16.
Bxc4 {[%clk 01:13:43]} {[%emt 00:00:57]} Qxc4 {[%clk 01:15:19]} {[%emt
00:00:07]} 17. Nb3 {[%clk 01:14:04]} {[%emt 00:00:09]} b5 {[%clk 01:13:08]}
{[%emt 00:02:41]} 18. Na5 {[%clk 01:12:31]} {[%emt 00:02:03]} Qb4 {[%clk
01:10:56]} {[%emt 00:02:42]} 19. Nxb7 {[%clk 01:04:00]} {[%emt 00:09:01]} bxa4
{[%clk 01:08:52]} {[%emt 00:02:35]} 20. Bc1 {[%clk 00:49:22]} {[%emt 00:15:06]}
a3 {[%clk 00:54:44]} {[%emt 00:14:39]} 21. Qd4 {[%clk 00:37:57]} {[%emt
00:11:55]} Qxb7 {[%clk 00:54:34]} {[%emt 00:00:39]} 22. bxa3 {[%clk 00:36:44]}
{[%emt 00:01:43]} d5 {[%clk 00:48:22]} {[%emt 00:06:42]} 23. Kh1 {[%clk
00:35:49]} {[%emt 00:01:26]} dxe4 {[%clk 00:47:27]} {[%emt 00:01:25]} 24. fxe4
{[%clk 00:30:07]} {[%emt 00:06:11]} Bc5 {[%clk 00:45:48]} {[%emt 00:02:09]} 25.
Qd2 {[%clk 00:29:04]} {[%emt 00:01:34]} Ng4 {[%clk 00:45:09]} {[%emt 00:01:09]}
26. Re2 {[%clk 00:28:40]} {[%emt 00:00:55]} Qc7 {[%clk 00:44:02]} {[%emt
00:01:37]} 27. g3 {[%clk 00:26:55]} {[%emt 00:02:15]} Be3 {[%clk 00:42:54]}
{[%emt 00:01:38]} 0-1

[Event "NJSK 2023 Jeugd C"]
[Site "Almelo, Netherlands"]
[Date "2023.05.02"]
[Round "4.3"]
[White "Kurt, Sascha"]
[Black "Zecha, Oscar"]
[Result "1/2-1/2"]
[TimeControl "90min/40moves + 30min + 30sec/move"]
[WhiteElo "1894"]
[BlackElo "1879"]

1. e4 {[%clk 01:30:51]} {[%emt 00:00:08]} e5 {[%clk 01:30:59]} {[%emt
00:00:02]} 2. Nf3 {[%clk 01:31:12]} {[%emt 00:00:09]} Nc6 {[%clk 01:31:27]}
{[%emt 00:00:02]} 3. Bc4 {[%clk 01:31:28]} {[%emt 00:00:13]} Bc5 {[%clk
01:31:56]} {[%emt 00:00:02]} 4. c3 {[%clk 01:31:48]} {[%emt 00:00:09]} Nf6
{[%clk 01:32:24]} {[%emt 00:00:02]} 5. d4 {[%clk 01:32:08]} {[%emt 00:00:10]}
exd4 {[%clk 01:32:52]} {[%emt 00:00:01]} 6. e5 {[%clk 01:32:34]} {[%emt
00:00:05]} d5 {[%clk 01:33:20]} {[%emt 00:00:02]} 7. Bb5 {[%clk 01:32:54]}
{[%emt 00:00:09]} Ne4 {[%clk 01:33:49]} {[%emt 00:00:02]} 8. cxd4 {[%clk
01:33:17]} {[%emt 00:00:08]} Bb6 {[%clk 01:34:18]} 9. Nc3 {[%clk 01:33:38]}
{[%emt 00:00:09]} O-O {[%clk 01:34:46]} {[%emt 00:00:02]} 10. Be3 {[%clk
01:34:03]} {[%emt 00:00:05]} Bg4 {[%clk 01:35:15]} {[%emt 00:00:01]} 11. h3
{[%clk 01:34:20]} {[%emt 00:00:13]} Bh5 {[%clk 01:35:44]} 12. Qc2 {[%clk
01:34:42]} {[%emt 00:00:08]} Bg6 {[%clk 01:36:13]} 13. Qb3 {[%clk 01:35:03]}
{[%emt 00:00:10]} Ne7 {[%clk 01:36:42]} {[%emt 00:00:02]} 14. O-O {[%clk
01:35:21]} {[%emt 00:00:11]} c6 {[%clk 01:37:11]} {[%emt 00:00:01]} 15. Bd3
{[%clk 01:35:32]} {[%emt 00:00:19]} Nf5 {[%clk 01:37:40]} {[%emt 00:00:02]} 16.
Qc2 {[%clk 01:35:36]} {[%emt 00:00:25]} Nxe3 {[%clk 01:38:04]} {[%emt
00:00:06]} 17. fxe3 {[%clk 01:36:04]} {[%emt 00:00:03]} Ng3 {[%clk 01:38:25]}
{[%emt 00:00:08]} 18. Rf2 {[%clk 01:33:16]} {[%emt 00:03:17]} Bxd3 {[%clk
01:35:55]} {[%emt 00:03:02]} 19. Qxd3 {[%clk 01:33:42]} {[%emt 00:00:04]} f6
{[%clk 01:35:16]} {[%emt 00:01:07]} 20. Qc2 {[%clk 01:07:38]} {[%emt 00:26:34]}
fxe5 {[%clk 01:32:27]} {[%emt 00:03:20]} 21. Nxe5 {[%clk 01:07:47]} {[%emt
00:00:22]} Qg5 {[%clk 01:32:41]} {[%emt 00:00:15]} 22. Re1 {[%clk 00:53:00]}
{[%emt 00:15:17]} Nf5 {[%clk 01:16:27]} {[%emt 00:16:44]} 23. Qd3 {[%clk
00:40:32]} {[%emt 00:12:56]} Bc7 {[%clk 01:15:48]} {[%emt 00:01:10]} 24. Rf4
{[%clk 00:29:10]} {[%emt 00:11:52]} Nh4 {[%clk 01:07:26]} {[%emt 00:08:52]} 25.
Rg4 {[%clk 00:26:45]} {[%emt 00:02:56]} Qf5 {[%clk 01:07:50]} {[%emt 00:00:07]}
26. Qxf5 {[%clk 00:24:00]} {[%emt 00:03:14]} Nxf5 {[%clk 01:07:15]} {[%emt
00:01:05]} 27. Nf3 {[%clk 00:21:16]} {[%emt 00:03:15]} Rae8 {[%clk 00:58:52]}
{[%emt 00:08:52]} 28. e4 {[%clk 00:20:00]} {[%emt 00:01:46]} Nh6 {[%clk
00:58:33]} {[%emt 00:00:49]} 29. Rg5 {[%clk 00:17:20]} {[%emt 00:03:10]} Bf4
{[%clk 00:58:10]} {[%emt 00:00:53]} 30. Rh5 {[%clk 00:17:46]} {[%emt 00:00:04]}
dxe4 {[%clk 00:54:06]} {[%emt 00:04:35]} 31. Nxe4 {[%clk 00:17:12]} {[%emt
00:01:03]} Kh8 {[%clk 00:40:53]} {[%emt 00:13:43]} 32. Ra5 {[%clk 00:16:10]}
{[%emt 00:01:31]} a6 {[%clk 00:39:57]} {[%emt 00:01:27]} 33. Ra3 {[%clk
00:15:57]} {[%emt 00:00:43]} Nf5 {[%clk 00:38:03]} {[%emt 00:02:25]} 34. g4
{[%clk 00:13:47]} {[%emt 00:02:40]} Nd6 {[%clk 00:33:02]} {[%emt 00:05:31]} 35.
Nxd6 {[%clk 00:13:46]} {[%emt 00:00:30]} Bxd6 {[%clk 00:33:06]} {[%emt
00:00:27]} 36. Rxe8 {[%clk 00:13:22]} {[%emt 00:00:53]} Rxe8 {[%clk 00:33:35]}
37. Rb3 {[%clk 00:13:21]} {[%emt 00:00:31]} Re7 {[%clk 00:32:41]} {[%emt
00:01:24]} 38. Kf2 {[%clk 00:12:41]} {[%emt 00:01:10]} Kg8 {[%clk 00:32:49]}
{[%emt 00:00:22]} 39. Nd2 {[%clk 00:10:03]} {[%emt 00:03:08]} b5 {[%clk
00:29:26]} {[%emt 00:03:54]} 40. Rc3 {[%clk 00:07:46]} {[%emt 00:02:44]} Bb4
{[%clk 00:28:31]} {[%emt 00:01:27]} 41. Rc2 {[%clk 00:08:02]} {[%emt 00:00:14]}
a5 {[%clk 00:25:05]} {[%emt 00:03:57]} 42. a3 {[%clk 00:07:25]} {[%emt
00:01:06]} Bxd2 {[%clk 00:24:45]} {[%emt 00:00:50]} 43. Rxd2 {[%clk 00:07:50]}
{[%emt 00:00:05]} Kf7 {[%clk 00:22:38]} {[%emt 00:02:37]} 44. Rc2 {[%clk
00:07:52]} {[%emt 00:00:27]} Rc7 {[%clk 00:22:28]} {[%emt 00:00:41]} 45. d5
{[%clk 00:07:58]} {[%emt 00:00:23]} c5 {[%clk 00:22:55]} {[%emt 00:00:04]} 46.
Ke3 {[%clk 00:06:31]} {[%emt 00:01:56]} Ke7 {[%clk 00:23:11]} {[%emt 00:00:15]}
47. a4 {[%clk 00:01:17]} {[%emt 00:05:45]} b4 {[%clk 00:22:13]} {[%emt
00:01:27]} 48. Kd3 {[%clk 00:01:16]} {[%emt 00:00:31]} Kd6 {[%clk 00:21:36]}
{[%emt 00:01:07]} 49. Kc4 {[%clk 00:01:13]} 1/2-1/2

[Event "NJSK 2023 Jeugd C"]
[Site "Almelo, Netherlands"]
[Date "2023.05.02"]
[Round "4.4"]
[White "Krylov, Philippe"]
[Black "Groenewoud, Joel"]
[Result "0-1"]
[TimeControl "90min/40moves + 30min + 30sec/move"]
[WhiteElo "1858"]
[BlackElo "1990"]

1. d4 {[%clk 01:30:57]} {[%emt 00:00:03]} Nf6 {[%clk 01:30:55]} {[%emt
00:00:05]} 2. c4 {[%clk 01:31:24]} {[%emt 00:00:03]} g6 {[%clk 01:31:21]}
{[%emt 00:00:04]} 3. Nc3 {[%clk 01:31:51]} {[%emt 00:00:04]} Bg7 {[%clk
01:31:47]} {[%emt 00:00:05]} 4. e4 {[%clk 01:32:17]} {[%emt 00:00:03]} d6
{[%clk 01:32:13]} {[%emt 00:00:04]} 5. f3 {[%clk 01:32:44]} {[%emt 00:00:03]}
O-O {[%clk 01:32:39]} {[%emt 00:00:04]} 6. Bg5 {[%clk 01:33:12]} {[%emt
00:00:02]} c5 {[%clk 01:33:01]} {[%emt 00:00:08]} 7. d5 {[%clk 01:33:40]}
{[%emt 00:00:03]} e6 {[%clk 01:33:24]} {[%emt 00:00:06]} 8. Qd2 {[%clk
01:34:05]} {[%emt 00:00:05]} Qa5 {[%clk 01:33:31]} {[%emt 00:00:24]} 9. Nge2
{[%clk 01:32:37]} {[%emt 00:01:57]} exd5 {[%clk 01:33:29]} {[%emt 00:00:32]} 10.
cxd5 {[%clk 01:32:27]} {[%emt 00:00:40]} b5 {[%clk 01:33:37]} {[%emt 00:00:22]}
11. Qf4 {[%clk 01:27:52]} {[%emt 00:05:06]} Nbd7 {[%clk 01:08:54]} {[%emt
00:25:13]} 12. g4 {[%clk 01:16:31]} {[%emt 00:11:51]} Re8 {[%clk 01:02:50]}
{[%emt 00:06:34]} 13. Kf2 {[%clk 01:13:11]} {[%emt 00:03:51]} b4 {[%clk
00:58:43]} {[%emt 00:04:36]} 14. Nd1 {[%clk 01:13:19]} {[%emt 00:00:22]} Ne5
{[%clk 00:51:43]} {[%emt 00:07:30]} 15. Ng3 {[%clk 01:09:07]} {[%emt 00:04:42]}
Nfd7 {[%clk 00:50:57]} {[%emt 00:01:16]} 16. Bh6 {[%clk 01:05:08]} {[%emt
00:04:30]} Bh8 {[%clk 00:45:40]} {[%emt 00:05:46]} 17. h4 {[%clk 01:00:00]}
{[%emt 00:05:38]} Ba6 {[%clk 00:36:03]} {[%emt 00:10:07]} 18. Nf5 {[%clk
00:52:48]} {[%emt 00:07:42]} Bxf1 {[%clk 00:33:25]} {[%emt 00:03:07]} 19. Kxf1
{[%clk 00:53:07]} {[%emt 00:00:12]} Qb5+ {[%clk 00:31:21]} {[%emt 00:02:34]} 20.
Kg1 {[%clk 00:44:44]} {[%emt 00:08:53]} Qe2 {[%clk 00:15:16]} {[%emt 00:16:34]}
21. Rh3 {[%clk 00:44:47]} {[%emt 00:00:27]} gxf5 {[%clk 00:12:30]} {[%emt
00:03:17]} 22. Qg5+ {[%clk 00:44:28]} {[%emt 00:00:49]} Ng6 {[%clk 00:12:49]}
{[%emt 00:00:10]} 23. gxf5 {[%clk 00:44:26]} {[%emt 00:00:33]} Bd4+ {[%clk
00:11:36]} {[%emt 00:01:43]} 24. Kh1 {[%clk 00:42:39]} {[%emt 00:02:17]} Qf1+
{[%clk 00:10:57]} {[%emt 00:01:09]} 25. Kh2 {[%clk 00:43:04]} {[%emt 00:00:05]}
Be5+ {[%clk 00:11:10]} {[%emt 00:00:17]} 26. Rg3 {[%clk 00:42:57]} {[%emt
00:00:36]} Bxg3+ {[%clk 00:10:58]} {[%emt 00:00:42]} 27. Qxg3 {[%clk 00:43:15]}
{[%emt 00:00:12]} Nde5 {[%clk 00:10:44]} {[%emt 00:00:43]} 28. Nf2 {[%clk
00:40:53]} {[%emt 00:02:52]} Qxa1 {[%clk 00:10:40]} {[%emt 00:00:35]} 29. f4
{[%clk 00:40:22]} {[%emt 00:01:01]} Qxb2 {[%clk 00:09:26]} {[%emt 00:01:43]} 30.
fxg6 {[%clk 00:40:34]} {[%emt 00:00:18]} Qxf2+ {[%clk 00:09:15]} {[%emt
00:00:41]} 0-1

[Event "NJSK 2023 Jeugd C"]
[Site "Almelo, Netherlands"]
[Date "2023.05.02"]
[Round "4.5"]
[White "Ten Kate, Gustav"]
[Black "Aravindhan, Achyuth"]
[Result "0-1"]
[TimeControl "90min/40moves + 30min + 30sec/move"]
[WhiteElo "1815"]
[BlackElo "1833"]

1. d4 {[%clk 01:30:01]} {[%emt 00:00:58]} Nf6 {[%clk 01:30:51]} {[%emt
00:00:10]} 2. c4 {[%clk 01:30:23]} {[%emt 00:00:07]} g6 {[%clk 01:31:16]}
{[%emt 00:00:06]} 3. Nc3 {[%clk 01:30:47]} {[%emt 00:00:05]} Bg7 {[%clk
01:31:42]} {[%emt 00:00:05]} 4. e4 {[%clk 01:31:03]} {[%emt 00:00:13]} d6
{[%clk 01:32:08]} {[%emt 00:00:05]} 5. f4 {[%clk 01:31:26]} {[%emt 00:00:06]}
O-O {[%clk 01:31:21]} {[%emt 00:01:17]} 6. Nf3 {[%clk 01:31:49]} {[%emt
00:00:07]} c5 {[%clk 01:29:10]} {[%emt 00:02:41]} 7. d5 {[%clk 01:32:14]}
{[%emt 00:00:06]} a6 {[%clk 01:25:57]} {[%emt 00:03:43]} 8. a4 {[%clk
01:31:20]} {[%emt 00:01:23]} e6 {[%clk 01:24:21]} {[%emt 00:02:07]} 9. Be2
{[%clk 01:31:41]} {[%emt 00:00:08]} exd5 {[%clk 01:23:20]} {[%emt 00:01:32]} 10.
exd5 {[%clk 01:32:09]} Bf5 {[%clk 01:22:41]} {[%emt 00:01:08]} 11. O-O {[%clk
01:30:18]} {[%emt 00:02:18]} Re8 {[%clk 01:20:43]} {[%emt 00:02:32]} 12. Nh4
{[%clk 01:29:13]} {[%emt 00:01:35]} Bc8 {[%clk 01:19:07]} {[%emt 00:02:01]} 13.
f5 {[%clk 01:28:32]} {[%emt 00:01:15]} Nfd7 {[%clk 01:13:56]} {[%emt 00:05:41]}
14. fxg6 {[%clk 01:24:11]} {[%emt 00:04:52]} hxg6 {[%clk 01:13:48]} {[%emt
00:00:38]} 15. Nf3 {[%clk 01:24:14]} {[%emt 00:00:26]} Ne5 {[%clk 01:14:09]}
{[%emt 00:00:10]} 16. Bf4 {[%clk 01:22:23]} {[%emt 00:02:20]} Nxf3+ {[%clk
01:10:03]} {[%emt 00:04:35]} 17. Bxf3 {[%clk 01:22:30]} {[%emt 00:00:24]} Bd4+
{[%clk 01:10:05]} {[%emt 00:00:29]} 18. Kh1 {[%clk 01:22:52]} {[%emt 00:00:08]}
Qf6 {[%clk 01:05:21]} {[%emt 00:05:15]} 19. Qd2 {[%clk 01:21:38]} {[%emt
00:01:43]} Bf5 {[%clk 01:04:49]} {[%emt 00:01:01]} 20. Rae1 {[%clk 01:16:27]}
{[%emt 00:05:42]} Nd7 {[%clk 01:03:40]} {[%emt 00:01:40]} 21. Bg5 {[%clk
01:11:03]} {[%emt 00:05:54]} Qg7 {[%clk 01:03:24]} {[%emt 00:00:45]} 22. g4
{[%clk 01:10:55]} {[%emt 00:00:38]} Rxe1 {[%clk 01:01:04]} {[%emt 00:02:50]} 23.
Rxe1 {[%clk 01:11:11]} {[%emt 00:00:13]} Ne5 {[%clk 01:01:22]} {[%emt
00:00:13]} 24. Qg2 {[%clk 01:07:41]} {[%emt 00:04:00]} Bd7 {[%clk 00:58:24]}
{[%emt 00:03:28]} 25. Ne4 {[%clk 01:06:31]} {[%emt 00:01:40]} Bxa4 {[%clk
00:49:20]} {[%emt 00:09:35]} 26. Nf6+ {[%clk 01:02:15]} {[%emt 00:04:45]} Kf8
{[%clk 00:44:35]} {[%emt 00:05:15]} 27. Rxe5 {[%clk 00:59:49]} {[%emt
00:02:56]} Bxe5 {[%clk 00:40:08]} {[%emt 00:04:56]} 28. Qh3 {[%clk 00:59:58]}
{[%emt 00:00:21]} Bxf6 {[%clk 00:40:20]} {[%emt 00:00:19]} 29. Bh6 {[%clk
01:00:20]} {[%emt 00:00:08]} Re8 {[%clk 00:40:14]} {[%emt 00:00:36]} 30. Bxg7+
{[%clk 01:00:44]} {[%emt 00:00:05]} Kxg7 {[%clk 00:40:01]} {[%emt 00:00:45]} 31.
Qf1 {[%clk 00:51:46]} {[%emt 00:09:27]} Re3 {[%clk 00:35:35]} {[%emt 00:04:55]}
32. Bd1 {[%clk 00:50:05]} {[%emt 00:02:11]} Bh4 {[%clk 00:32:31]} {[%emt
00:03:34]} 33. Bxa4 {[%clk 00:49:24]} {[%emt 00:01:12]} Re1 {[%clk 00:32:43]}
{[%emt 00:00:18]} 34. Qxe1 {[%clk 00:49:49]} {[%emt 00:00:05]} Bxe1 {[%clk
00:33:08]} {[%emt 00:00:05]} 35. Bc2 {[%clk 00:50:02]} {[%emt 00:00:16]} b5
{[%clk 00:33:06]} {[%emt 00:00:33]} 36. b3 {[%clk 00:50:19]} {[%emt 00:00:13]}
bxc4 {[%clk 00:32:38]} {[%emt 00:00:58]} 37. bxc4 {[%clk 00:50:42]} {[%emt
00:00:06]} Kf6 {[%clk 00:32:48]} {[%emt 00:00:20]} 38. Kg2 {[%clk 00:50:45]}
{[%emt 00:00:27]} Ke5 {[%clk 00:32:49]} {[%emt 00:00:29]} 39. Kf1 {[%clk
00:50:21]} {[%emt 00:00:54]} Bh4 {[%clk 00:31:05]} {[%emt 00:02:14]} 40. Ke2
{[%clk 00:50:15]} {[%emt 00:00:36]} Kd4 {[%clk 00:31:27]} {[%emt 00:00:08]} 41.
h3 {[%clk 00:47:55]} {[%emt 00:02:50]} a5 {[%clk 00:27:20]} {[%emt 00:04:38]}
42. Bb3 {[%clk 00:47:45]} {[%emt 00:00:40]} Kc3 {[%clk 00:27:41]} {[%emt
00:00:09]} 43. Ba4 {[%clk 00:48:04]} {[%emt 00:00:10]} Kxc4 {[%clk 00:27:46]}
{[%emt 00:00:26]} 44. Kd2 {[%clk 00:48:17]} {[%emt 00:00:16]} Kxd5 {[%clk
00:28:03]} {[%emt 00:00:13]} 45. Be8 {[%clk 00:48:35]} {[%emt 00:00:12]} Ke6
{[%clk 00:28:21]} {[%emt 00:00:12]} 46. Kd3 {[%clk 00:48:57]} {[%emt 00:00:09]}
g5 {[%clk 00:28:31]} {[%emt 00:00:20]} 47. Kc4 {[%clk 00:49:15]} {[%emt
00:00:12]} f5 {[%clk 00:28:39]} {[%emt 00:00:22]} 48. gxf5+ {[%clk 00:49:37]}
{[%emt 00:00:08]} Kxf5 {[%clk 00:29:00]} {[%emt 00:00:10]} 49. Kd5 {[%clk
00:49:58]} {[%emt 00:00:08]} Bg3 {[%clk 00:29:17]} {[%emt 00:00:11]} 50. Bc6
{[%clk 00:50:15]} {[%emt 00:00:15]} Be5 {[%clk 00:29:19]} {[%emt 00:00:28]} 51.
Be8 {[%clk 00:50:10]} {[%emt 00:00:35]} Kf4 {[%clk 00:29:38]} {[%emt 00:00:11]}
52. Kc4 {[%clk 00:50:21]} {[%emt 00:00:19]} Kg3 {[%clk 00:29:36]} {[%emt
00:00:31]} 53. Bd7 {[%clk 00:50:42]} {[%emt 00:00:10]} a4 {[%clk 00:29:44]}
{[%emt 00:00:22]} 54. Be6 {[%clk 00:50:53]} {[%emt 00:00:18]} a3 {[%clk
00:30:06]} {[%emt 00:00:09]} 55. Kb3 {[%clk 00:51:14]} {[%emt 00:00:08]} Bb2
{[%clk 00:30:24]} {[%emt 00:00:10]} 56. Kc2 {[%clk 00:51:20]} {[%emt 00:00:26]}
Kf4 {[%clk 00:30:43]} {[%emt 00:00:10]} 57. Kd3 {[%clk 00:51:29]} {[%emt
00:00:22]} Ke5 {[%clk 00:30:58]} {[%emt 00:00:15]} 58. Ba2 {[%clk 00:51:41]}
{[%emt 00:00:19]} d5 {[%clk 00:31:18]} {[%emt 00:00:10]} 59. Kc2 {[%clk
00:51:56]} {[%emt 00:00:13]} Ke4 {[%clk 00:31:00]} {[%emt 00:00:49]} 60. Kd2
{[%clk 00:51:49]} {[%emt 00:00:36]} d4 {[%clk 00:30:58]} {[%emt 00:00:40]} 61.
Bc4 {[%clk 00:52:08]} {[%emt 00:00:11]} Kf4 {[%clk 00:30:50]} {[%emt 00:00:37]}
62. Kc2 {[%clk 00:52:27]} {[%emt 00:00:11]} Ke3 {[%clk 00:31:08]} {[%emt
00:00:13]} 63. Kd1 {[%clk 00:52:29]} {[%emt 00:00:27]} d3 {[%clk 00:31:22]}
{[%emt 00:00:16]} 64. h4 {[%clk 00:52:54]} {[%emt 00:00:06]} gxh4 {[%clk
00:31:45]} {[%emt 00:00:07]} 65. Be6 {[%clk 00:53:15]} {[%emt 00:00:07]} h3
{[%clk 00:32:06]} {[%emt 00:00:10]} 66. Bf5 {[%clk 00:52:53]} {[%emt 00:00:52]}
a2 {[%clk 00:32:27]} {[%emt 00:00:10]} 67. Bxd3 {[%clk 00:53:11]} {[%emt
00:00:11]} Kxd3 {[%clk 00:32:51]} {[%emt 00:00:07]} 68. Ke1 {[%clk 00:53:37]}
{[%emt 00:00:04]} Bd4 {[%clk 00:33:14]} {[%emt 00:00:06]} 0-1